Cogmind - Beta 16 --- EXPLORER MODE // 2025.12.15 @ 09:51:50 Player: K.K.Y. Result: Destroyed by G8-2DN(R) with Subdweller Beam Cannon Performance ------------- Evolutions (0) 0 Regions Visited (3) 600 Robots Destroyed (33) 165 Value Destroyed (680) 680 Prototype IDs (0) 0 Alien Tech Used (0) 0 Bonus (0) 0 TOTAL SCORE: 1445 Bonus ------- None Cogmind --------- Core Integrity 0/250 Matter 284/300 Energy 250/250 System Corruption 0% Temperature Cool (9) Movement Treading (260) Ox1 Location -10/Subcaves Parts ------- > --- POWER (1) -------- Ion Engine > --- PROPULSION (3) --- Spiked Treads Wheel Combat Airjet > --- UTILITY (2) ------ Small Storage Unit Machine Analyzer > --- WEAPON (2) ------- Heavy Battle Rifle Bore Cannon > --- INVENTORY (8) ---- High-capacity Storage Unit Structural Scanner Cobbler Unit Shotgun Battle Cannon Mining Laser Plasma Cutter Peak State ------------ > --- POWER ------------ Ion Engine > --- PROPULSION ------- Spiked Treads Wheel Combat Airjet > --- UTILITY ---------- Small Storage Unit Machine Analyzer > --- WEAPON ----------- Heavy Battle Rifle Bore Cannon > --- INVENTORY -------- High-capacity Storage Unit Structural Scanner Cobbler Unit Shotgun Battle Cannon Mining Laser Plasma Cutter [Rating: 23] Favorites ----------- Power Ion Engine Engine Ion Engine Propulsion Wheel Treads Spiked Treads Wheel Wheel Hover Unit Combat Airjet Utility Structural Scanner Device Structural Scanner Storage Small Storage Unit Processor Machine Analyzer Protection Core Shielding Weapon Medium Laser Energy Gun Medium Laser Ballistic Gun Shotgun Ballistic Cannon Bore Cannon Special Weapon Mining Laser Build | -11 -10 -10 -10 ------- Run | Yrd Mat Min Sub Slots Evolved 1 | . 1 . . Power . | . . . . Propulsion 1 | . 1 . . Utility . | . . . . Weapon . | . . . . Parts Attached 23 | 6 8 5 4 Power 2 | 1 . 1 . Engine 2 | 1 . 1 . Core . | . . . . Reactor . | . . . . Propulsion 9 | 2 3 3 1 Treads 1 | . . . 1 Leg . | . . . . Wheel 7 | 2 3 2 . Hover 1 | . . 1 . Flight . | . . . . Utility 6 | 1 3 . 2 Device 2 | . 2 . . Storage 1 | . . . 1 Processor 2 | 1 . . 1 Hackware . | . . . . Protection 1 | . 1 . . Artifact . | . . . . Weapon 6 | 2 2 1 1 Energy Gun 1 | 1 . . . Energy Cannon . | . . . . Ballistic Gun 2 | . 1 . 1 Ballistic Cannon 1 | . . 1 . Launcher . | . . . . Special Weapon 2 | 1 1 . . Impact Weapon . | . . . . Slashing Weapon . | . . . . Piercing Weapon . | . . . . Special Melee Weapon . | . . . . Unidentified Prototypes . | . . . . Parts Lost 3 | . . 2 1 Power . | . . . . Propulsion 2 | . . 1 1 Utility 1 | . . 1 . Weapon . | . . . . Highest Loss Streak 2 | . . 2 1 To Critical Strikes . | . . . . Average Backups 5 | 3 4 5 6 Power . | . . . . Propulsion . | . . . . Utility 2 | 1 1 2 2 Weapon 2 | . 1 2 2 Tool/Special . | . . . . Unused Backups 6 | . 1 . 5 Power . | . . . . Propulsion . | . . . . Utility 3 | . 1 . 2 Weapon 2 | . . . 2 Tool/Special 1 | . . . 1 Average Slot Usage (%) 90 | . 83 91 95 Engine 12 | . 12 12 12 Treads 2 | . . . 7 Wheel 24 | . 32 29 13 Hover 6 | . . 6 12 Device 7 | . 2 17 4 Storage 2 | . . . 7 Processor 7 | . 9 . 10 Protection 1 | . 3 . . Energy Gun 11 | . 12 12 11 Ballistic Gun 3 | . 7 4 . Ballistic Cannon 7 | . . 8 12 Peak Build Rating 23 | 5 9 15 23 Average Rating 13 | 1 7 12 18 On Entrance 7 | . 5 9 15 Avg Prop Armor Cover (%) 4 | . . 3 5 Naked Turns . | . . . . Heaviest Build 23 | 5 10 18 23 Greatest Support 30 | 20 30 30 20 Greatest Overweight (x) 2 | . . 1 2 Average Overweight (x) . | . . . . Largest Inventory Capacity 8 | 5 5 5 8 Average Capacity 5 | 5 5 5 6 Most Carried 8 | 5 5 5 8 Average Carried 5 | 3 4 5 6 Final Capacity 8 | 5 5 5 8 Final Carried 8 | 3 5 5 8 Class Distribution -------------------- 100% | Hacker-Mutant Dominant Class ---------------- Hacker-Mutant | -10/Materials Hacker-Mutant | -10/Mines Hacker-Mutant | -10/Subcaves Resources | -11 -10 -10 -10 ----------- Run | Yrd Mat Min Sub Matter Collected 737 | 251 187 99 200 Remotely . | . . . . Salvage Created 1268 | 188 858 15 207 Parts 69 | 14 40 7 8 Haulers Intercepted 2 | . 2 . . Recyclers Shooed 1 | . 1 . . Parts Field Recycled . | . . . . Retrieved Matter . | . . . . Parts Self-Destructed . | . . . . Prevented . | . . . . Parts Restored . | . . . . Kills | -11 -10 -10 -10 ------- Run | Yrd Mat Min Sub Combat Hostiles Destroyed 13 | . 7 2 4 Guns 11 | . 7 . 4 Cannons 2 | . . 2 . Classes Destroyed 12 | 2 6 1 3 Worker 2 | . 2 . . Builder 2 | . 1 1 . Tunneler 5 | 5 . . . Hauler 2 | . 2 . . Recycler 6 | 1 5 . . Mechanic 1 | . 1 . . Watcher 2 | . 2 . . Grunt 7 | . 7 . . Sentry 1 | . . . 1 Demolisher 2 | . . 2 . Cobbler 1 | . . . 1 Subdweller 3 | . . . 3 Best Kill Streak 4 | 4 4 3 2 Combat Bots Only 3 | . 3 2 2 Max Kills in Single Turn 1 | 1 1 1 1 Gunslinging . | . . . . Exploded . | . . . . Melee . | . . . . Uniques/NPCs Destroyed . | . . . . Combat | -11 -10 -10 -10 -------- Run | Yrd Mat Min Sub Hostile Shots Fired 79 | . 36 8 35 Missed 28 | . 16 2 10 Hits 51 | . 20 6 25 Projectile 51 | . 20 6 25 AOE 8 | . . 8 . Critical Strikes 2 | . 1 . 1 Damage Taken 734 | . 153 214 367 Core 265 | . 51 44 170 Absorbed by Shields . | . . . . Ignored by Resistances 435 | . 97 125 213 Core Remaining (%) 100 | 100 . . . Volleys Fired 98 | 13 53 7 25 Largest 2 | 1 2 2 2 Hottest 98 | 50 73 98 98 Shots Fired 157 | 13 80 14 50 Gun 125 | 13 80 7 25 Cannon 32 | . . 7 25 Launcher . | . . . . Special . | . . . . Kinetic 61 | . 27 7 27 Thermal 96 | 13 53 7 23 Explosive . | . . . . Electromagnetic . | . . . . Robot Hit Streak 30 | 13 30 4 25 Robot Miss Streak 3 | . 2 3 2 Penetration Max . | . . . . Secondary Targets . | . . . . Shots Hit Robots 128 | 13 71 8 36 Core Hits 61 | 7 39 4 11 Critical Kills 3 | . . 2 1 Critical Parts Destroyed 6 | . 1 1 4 Critical Strikes 26 | 1 6 5 14 Burn 11 | 1 5 1 4 Destroy 15 | . 1 4 10 Melee Attacks . | . . . . Impact . | . . . . Slashing . | . . . . Piercing . | . . . . Sneak Attacks . | . . . . Combat Hostiles . | . . . . Follow-up Attacks . | . . . . Damage Inflicted 2019 | 161 1023 174 661 Guns 1496 | 161 1023 50 262 Cannons 523 | . . 124 399 Explosions . | . . . . Melee . | . . . . Ramming . | . . . . Kinetic 941 | . 396 124 421 Thermal 1078 | 161 627 50 240 Explosive . | . . . . Electromagnetic . | . . . . Impact . | . . . . Slashing . | . . . . Piercing . | . . . . Highest Corruption . | . . . . Average Corruption . | . . . . Corruption Purged . | . . . . Corruption Blocked . | . . . . Overload Shots . | . . . . Overflow Damage 4 | . . . 4 Projectiles 4 | . . . 4 Explosions . | . . . . Melee . | . . . . Knockbacks 2 | . . . 2 Impact . | . . . . Kinetic 2 | . . . 2 Secondary . | . . . . Self-Inflicted Damage . | . . . . Shots . | . . . . Rammed . | . . . . Targets Rammed . | . . . . Kicked . | . . . . Crushed . | . . . . Highest Temperature 252 | 25 173 252 7 Average Temperature 48 | 25 36 128 3 Received Heat Transfer 318 | . 162 . 156 Siege Activations . | . . . . Martial Activations . | . . . . Shielding Activations . | . . . . Robots Disrupted . | . . . . Combat Hostiles . | . . . . Robots Corrupted . | . . . . Combat Hostiles . | . . . . Parts Fried . | . . . . Impact Corruptions . | . . . . Robots Melted . | . . . . Combat Hostiles . | . . . . Parts Melted 7 | 3 3 . 1 Heat Transferred 3996 | 555 2220 222 999 Parts Sabotaged . | . . . . Parts Stolen . | . . . . Parts Stripped . | . . . . Power Chain Reactions . | . . . . Alert | -11 -10 -10 -10 ------- Run | Yrd Mat Min Sub Maximum Alert Level . | . . . . Low Security (%) 100 | 100 100 100 . Level 1 . | . . . . Level 2 . | . . . . Level 3 . | . . . . Level 4 . | . . . . Level 5 . | . . . . High Security . | . . . . Max Security . | . . . . Peak Influence 90 | 10 90 30 . Initial 2 | . 2 . . Average 7 | 2 14 1 . Influence Increases 378 | 30 273 55 20 Destroy 0b10 Robot/C 200 | . 140 40 20 Destroy 0b10 Robot/NC 100 | 30 65 5 . Destroy Leader 48 | . 38 10 . Partial Spotted 15 | . 15 . . Lose Combat Pursuer 15 | . 15 . . Influence Decreases 378 | 25 278 55 20 Entered New Map 3 | . 3 . . Time Decay 355 | 25 275 35 20 Lost Part 20 | . . 20 . Squads Dispatched . | . . . . Investigation . | . . . . Extermination . | . . . . Reinforcement . | . . . . Assault . | . . . . Garrison . | . . . . Intercept . | . . . . Searches Triggered . | . . . . Construction Impeded . | . . . . Haulers Reinforced . | . . . . Active Scanning Responses . | . . . . Cargo Convoy Interrupts . | . . . . Stealth | -11 -10 -10 -10 --------- Run | Yrd Mat Min Sub Distress Signals 2 | . 2 . . Communications Jammed . | . . . . Distress Signals . | . . . . Times Spotted 25 | . 17 2 6 Peak Tracking Total 6 | . 6 2 2 Tactical Retreats 1 | . 1 . . Traps | -11 -10 -10 -10 ------- Run | Yrd Mat Min Sub Traps Triggered . | . . . . Indirectly . | . . . . Trap Hack Attempts . | . . . . Triggered . | . . . . Disarmed . | . . . . Reprogrammed . | . . . . Reused . | . . . . Traps Extracted . | . . . . Installed . | . . . . Triggered . | . . . . Machines | -11 -10 -10 -10 ---------- Run | Yrd Mat Min Sub Machines Disabled . | . . . . Max in Single Turn . | . . . . Machines Repaired . | . . . . Machines Dismantled . | . . . . Machines Sabotaged . | . . . . Overloaded Fab Kills . | . . . . Hacking | -11 -10 -10 -10 --------- Run | Yrd Mat Min Sub Machines Accessed 8 | . 7 . 1 Terminals 5 | . 5 . . Fabricators . | . . . . Repair Stations . | . . . . Recycling Units 2 | . 2 . . Scanalyzers . | . . . . Garrison Access . | . . . . Total Hacks 16 | . 12 . 4 Successful 13 | . 9 . 4 Failed 3 | . 3 . . Catastrophic . | . . . . Database Lockouts . | . . . . Manual 12 | . 12 . . Terminals 8 | . 8 . . Fabricators . | . . . . Repair Stations . | . . . . Recycling Units 4 | . 4 . . Scanalyzers . | . . . . Garrison Access . | . . . . Terminal Hacks 4 | . . . 4 Record 4 | . . . 4 Fabricator Hacks . | . . . . Repair Station Hacks . | . . . . Recycling Unit Hacks 2 | . 2 . . Retrieve Components 2 | . 2 . . Scanalyzer . | . . . . Garrison Access Hacks . | . . . . Unauthorized Hacks 7 | . 7 . . Terminals 5 | . 5 . . Botnet 5 | . 5 . . Fabricators . | . . . . Repair Stations . | . . . . Recycling Units 2 | . 2 . . Reject 2 | . 2 . . Scanalyzers . | . . . . Garrison Access . | . . . . Data Cores Recovered . | . . . . Used . | . . . . Hacking Detections 4 | . 4 . . Full Trace Events . | . . . . Feedback Events . | . . . . Feedback Blocked . | . . . . Robot Schematics Acquired . | . . . . Robots Built . | . . . . Authchips . | . . . . Time . | . . . . Total Robot Build Rating . | . . . . Part Schematics Acquired . | . . . . Parts Built . | . . . . Authchips . | . . . . Time . | . . . . Total Part Build Rating . | . . . . Part Studies Acquired . | . . . . Parts Repaired . | . . . . Time . | . . . . Parts Recycled . | . . . . Recycled Matter . | . . . . Retrieved Matter . | . . . . Retrieved Components 13 | . 13 . . Parts Scanalyzed . | . . . . Part Schematics Acquired . | . . . . Parts Damaged . | . . . . Bothacking | -11 -10 -10 -10 ------------ Run | Yrd Mat Min Sub Used RIF Installer . | . . . . Robots Hacked . | . . . . Non-combat . | . . . . Combat . | . . . . Robot Hacks Applied . | . . . . Relay Couplers Released . | . . . . Fabnet Peak Effective % . | . . . . Robots Rewired . | . . . . Allies Hacked . | . . . . Hacks Repelled . | . . . . Allies | -11 -10 -10 -10 -------- Run | Yrd Mat Min Sub Total Allies 2 | . . 2 . Largest Group 2 | . . 2 1 Highest-Rated Group 45 | . . 45 14 Highest-Rated Ally 31 | . . 31 14 Total Orders . | . . . . Ally Attacks . | . . . . Total Damage . | . . . . Kills . | . . . . Allies Corrupted . | . . . . Allies Melted . | . . . . Intel | -11 -10 -10 -10 ------- Run | Yrd Mat Min Sub Active Infowar (turns) 1745 | . 118 739 888 Sensors 339 | . 44 295 . Structural 1164 | . 118 739 307 Machine Analysis 801 | . . . 801 Robot Analysis Total . | . . . . Derelict Logs Recovered 1 | . . . 1 Drone Launches . | . . . . Drone Recoveries . | . . . . Exploration | -11 -10 -10 -10 ------------- Run | Yrd Mat Min Sub Turns Passed 2409 | 97 685 739 888 Spaces Moved 1739 | 68 648 574 449 Core 24 | 24 . . . Treads 208 | . . . 208 Legs . | . . . . Wheels 1502 | 44 648 569 241 Hover 5 | . . 5 . Flight . | . . . . Fastest Speed 50 | 50 80 80 80 Average Speed 103 | 69 80 80 170 Slowest Speed 260 | 80 80 150 260 Overloaded Moves . | . . . . Propulsion Burnouts . | . . . . Robots Hopped . | . . . . Potential Cave-ins . | . . . . Cave-ins Triggered . | . . . . Exploration Rate (%) 57 | 4 90 98 36 Regions Visited 3 Branch Regions 2 Pre-discovered Areas . | . . . . Known Exits Taken 3 | 1 1 1 . Unknown Exits Taken . | . . . . Scrap Searched 2 | . . 1 1 Spaces Dug . | . . . . Terrain Destroyed 9 | . . . 9 Melee . | . . . . Projectile 9 | . . . 9 AOE . | . . . . Terrain Rammed . | . . . . Walls Destroyed . | . . . . Machines Disabled . | . . . . Actions | -11 -10 -10 -10 --------- Run | Yrd Mat Min Sub Total 2196 | 104 736 835 521 Wait 312 | 10 18 246 38 Move 1736 | 67 647 573 449 Hop . | . . . . Pick Up 16 | 7 5 . 4 Fast Attach 9 | 2 2 4 1 Attach 9 | 4 3 . 2 Detach 1 | . 1 . . Swap 5 | . 3 1 1 Drop 10 | 1 4 4 1 Fire 98 | 13 53 7 25 Melee . | . . . . Ram . | . . . . Kick . | . . . . Crush . | . . . . Escape Stasis . | . . . . Rewire . | . . . . Trap . | . . . . Miscellaneous . | . . . . Route ------- -11/Scrapyard -10/Materials (discovered 4 exits: *Mat x2 / *Min x2) -10/Mines (discovered 4 exits: *Mat x2 / *Exi / *Sub) -10/Subcaves History --------- Turn | Location | Event 8 | -11/Scrapyard | Identified exit to Materials 8 | -11/Scrapyard | Discovered exit to Materials (range 16) 98 | -11/Scrapyard | Entered Materials 98 | -10/Materials | Evolved 1 slot: Propulsion x1 282 | -10/Materials | Identified exit to Materials 282 | -10/Materials | Discovered exit to Materials (range 4) 304 | -10/Materials | Build established: Hacker-Mutant 453 | -10/Materials | Identified exit to Mines 453 | -10/Materials | Discovered exit to Mines (range 7) 662 | -10/Materials | Discovered exit to Mines (range 13) 698 | -10/Materials | Derelicts attacked the area 730 | -10/Materials | Discovered exit to Materials (range 15) 783 | -10/Materials | Entered Mines 804 | -10/Mines | Identified exit to Subcaves 804 | -10/Mines | Discovered exit to Subcaves (range 7) 818 | -10/Mines | Deemed a non-threat by the Exiles lab entrance 818 | -10/Mines | Identified exit to Exiles 818 | -10/Mines | Discovered exit to Exiles (range 5) 859 | -10/Mines | Assembled infested the area 864 | -10/Mines | Assisted by a Guerilla fighting off Assembled 972 | -10/Mines | Discovered exit to Materials (range 5) 1018 | -10/Mines | Discovered exit to Materials (range 12) 1020 | -10/Mines | A weapon hastily lodged in a ceiling crevice suddenly fell to the ground 1522 | -10/Mines | Entered Subcaves 1522 | -10/Subcaves | Accompanied by 1 ally 1523 | -10/Subcaves | Shifting Twisted Machinery released Sub. Laser 1523 | -10/Subcaves | Shifting Twisted Machinery released Sub. Beam Cannon 1523 | -10/Subcaves | Approached by a straggling Scientist 1573 | -10/Subcaves | Shifting Twisted Machinery released Sub. Power Source 1588 | -10/Subcaves | Core integrity fell below 50% 1615 | -10/Subcaves | Learned 4 Materials zone layouts 1664 | -10/Subcaves | Visited Clippyterm 1667 | -10/Subcaves | Learned 40 Factory zone layouts 1667 | -10/Subcaves | Learned Factory emergency access door positions 1682 | -10/Subcaves | Core integrity fell below 20% 2055 | -10/Subcaves | A swath of the cavern ceiling suddenly collapsed 2225 | -10/Subcaves | Ambushed by Subdweller buried in earth 2410 | -10/Subcaves | Destroyed by G8-2DN(R) with Subdweller Beam Cannon Last Messages --------------- 02234_ MM-6GO(R) knocked back. 02240_ MM-6GO(R) destroyed. 02243_ Acquired 28 matter. 02328_ HV Slug penetrates Twisted Machinery. 02328_ HV Slug penetrates Earth. 02334_ HV Slug penetrates Twisted Machinery. 02340_ Acquired 4 matter. 02351_ Searching scrap... 02351_ Found Hvy. Battle Rifle. 02351_ Found 34 Matter. 02352_ Acquired 24 matter. 02356_ Acquired Hvy. Battle Rifle. 02358_ Acquired 10 matter. 02389_ HV Slug penetrates Earth. 02389_ Z1-5NE(R) suffers critical hit (Destroy). 02389_ Destroyed Sub. Machine Gun. 02390_ Acquired 4 matter. 02394_ Z1-5NE(R) suffers critical hit (Destroy). Map ----- +----------------------------------------------------+ | ?????????????????????????????????????????????????? | | ?????????????????????????????????????????????????? | | ?????????????????????????????????????????????????? | | ?????????????????????????????????????????????????? | | ?????????????????????????????????????????????????? | | ?????????????????????????????????????????????????? | | ?????????????????????????????????????????????????? | | ?????????????????????????????????????????????????? | | ?????????????????????????????????????????????????? | | ?????????????????????????????????????????????????? | | ?????????????????????????????????????????????????? | | ?????????????????????????????????????????????????? | | ?????????????????????????????????????????????????? | | ?????????????????????????????????????????????????? | | ????????????????????????#????????????????????????? | | ???????????????????????? ????????????????????????? | | ???????????????????????? #???????????????????????? | | ????????????????????????#R#??????????????????????? | | ????????????????????????# ??????????????????????? | | ????????????????????????# %??????????????????????? | | ????????????????????????#% ??????????????????????? | | ????????????????????????# #??????????????????????? | | ???????????????????????## #??????????????????????? | | ???????????????????????? %##?????????????????????? | | ????????????????????????# ##????????????????????? | | ????????????????????????#@ ##???????????????????? | | ????????????????????????# #???????????????????? | | ????????????????????????# ## ##?????????????????? | | ????????????????????????# ## #?????????????????? | | ??????????????????????#?## ###[#?????????????????? | | ??????????????????????# ?#z # #?????????????????? | | ???????????????????????# # ## ##?????????????????? | | ????????????????????????# # ##??????????????????? | | ????????????????????????##" ##???????????????????? | | ????????????????????????## "##???????????????????? | | ?????????????????????#### """#???????????????????? | | ?????????????????????# # #"###???????????????????? | | ?????????????????????## # ##?????????????????????? | | ??????????????????#### ## #??????????????????????? | | ??????????????????# #### ??????????????????????? | | ??????????????????## ##??? #?????????????????????? | | ?????????????????## ##?????#?????????????????????? | | ?????????????????# ##????????????????????????????? | | ????????????????## #????????????????????????????? | | ????????????????# ###????????????????????????????? | | ????????????????##%#?????????????????????????????? | | ?????????????????# #?????????????????????????????? | | ????????????????## #?????????????????????????????? | | #???????????????# ##??##?????????????????????????? | | #???????????????## #?? #?????????????????????????? | +----------------------------------------------------+ Best States ------------- Heat Dissipation 25 Energy Generation 10 Energy Capacity 250 Matter Stores 300 Matter Capacity 300 Sight Range 16 Robot Scan Range 14 Terrain Scan Density 10 Resistance: KI 35 Resistance: TH 35 Resistance: EX 35 Resistance: EM 35 Resistance: I 35 Resistance: S 35 Resistance: P 35 Core Shielding 20 Evasion (%) 50 Targeting Accuracy 5 Recoil Reduction 1 Offensive Hacking 20 Item Schematics ----------------- None Robot Schematics ------------------ None Fabricated ------------ Nothing Repaired ---------- Nothing Studied --------- None Alien Tech Used ----------------- None Achievements -------------- None Challenges ------------ None Game ------ Seed MasterVariableCyclogen Manual? 0 Play Time 00:15:01 Cumulative 198.1 hours Start 2025.12.15 @ 09:39:29 End 2025.12.15 @ 09:51:50 Sessions 1 Manual Loads 0 Difficulty Explorer Special Mode None Game No. 294 Rogue 0 Adventurer 0 Explorer 294 Win Type - Total 0 Types 0/0/0/0/0/0/0/0/0/0 Lore% 71 Gallery% 67 Achievement% 53 Wizard Run 0 Options --------- Layout 1 ASCII 0 Keyboard 0 Movement Mouse Keybinds 0 Fullscreen 1 Font 24/Smallcaps Map View 50x35 Zoom Use 0% Tactical HUD 1 Map Filters NONE Filters NONE Steam 1 RUN: 6902a669-46e1-4d87-8006-f5aad298beda